Cogmind - Beta 16.1 @@@ ROGUE MODE // 2026.04.04 @ 15:47:43 Player: konomiyu Result: Destroyed self via exploding Fusion Modulator Performance ------------- Evolutions (3) 1500 Regions Visited (6) 1200 Robots Destroyed (69) 345 Value Destroyed (1731) 1731 Prototype IDs (32) 640 Alien Tech Used (0) 0 Bonus (399) 399 TOTAL SCORE: 5815 Bonus ------- High Alert Combat Kills 99 Aligned with FarCom 300 Cogmind --------- Core Integrity 0/700 Matter 212/300 Energy 100/100 System Corruption 12% Temperature Cool (12) Movement Rolling (105) Ox1 Location -7/Factory Parts ------- > --- POWER (1) -------- (None) > --- PROPULSION (6) --- Compact Wheel Improved VTOL Module Improved VTOL Module Improved VTOL Module Improved VTOL Module > --- UTILITY (4) ------ Large Storage Unit Structural Scanner Advanced ECM Suite Hacking Suite > --- WEAPON (2) ------- Precision Beam Rifle Chainsword > --- INVENTORY (15) --- Light Ion Engine Light Nuclear Core Aluminum Leg Improved Heat Sink Seismic Detector Transmission Jammer ECM Suite System Shield System Shield Precision Beam Rifle Heavy Missile Launcher Datajack Great Axe Peak State ------------ > --- POWER ------------ Light Nuclear Core > --- PROPULSION ------- Aluminum Leg Wheel Improved VTOL Module Improved VTOL Module Improved VTOL Module Improved VTOL Module > --- UTILITY ---------- Large Storage Unit Advanced Terrain Scan Processor Transmission Jammer Hacking Suite > --- WEAPON ----------- Precision Beam Rifle Chainsword > --- INVENTORY -------- Light Ion Engine Light Nuclear Core Compact Wheel Improved Heat Sink Structural Scanner Seismic Detector ECM Suite Advanced ECM Suite System Shield System Shield Precision Beam Rifle Heavy Missile Launcher Datajack Great Axe Great Axe [Rating: 44] Favorites ----------- Power Micro Nuclear Core Engine Light Ion Engine Power Core Micro Nuclear Core Propulsion Light Treads Treads Light Treads Leg Aluminum Leg Wheel Compact Wheel Flight Unit Improved VTOL Module Utility Large Storage Unit Device Transmission Jammer Storage Large Storage Unit Processor Advanced Terrain Scan Processor Hackware Hacking Suite Weapon Small Laser Energy Gun Small Laser Ballistic Gun Assault Rifle Launcher Rocket Launcher Special Weapon Mining Laser Impact Weapon Heavy Flail Slashing Weapon Great Axe Special Melee Weapon Datajack Build | -11 -10 -10 -10 -9 -8 -7 ------- Run | Yrd Mat Min Exi Min Mat Fac Slots Evolved 6 | . . . . . 4 2 Power . | . . . . . . . Propulsion 4 | . . . . . 2 2 Utility 2 | . . . . . 2 . Weapon . | . . . . . . . Parts Attached 78 | 7 5 1 . 3 40 22 Power 7 | 1 1 . . 1 2 2 Engine 4 | 1 1 . . . 1 1 Core 3 | . . . . 1 1 1 Reactor . | . . . . . . . Propulsion 30 | 2 . . . . 16 12 Treads 12 | 2 . . . . 8 2 Leg 8 | . . . . . 5 3 Wheel 3 | . . . . . 1 2 Hover . | . . . . . . . Flight 7 | . . . . . 2 5 Utility 18 | 2 1 1 . 2 8 4 Device 14 | 1 . 1 . 2 7 3 Storage 2 | 1 1 . . . . . Processor 1 | . . . . . . 1 Hackware 1 | . . . . . 1 . Protection . | . . . . . . . Artifact . | . . . . . . . Weapon 23 | 2 3 . . . 14 4 Energy Gun 12 | . 2 . . . 9 1 Energy Cannon . | . . . . . . . Ballistic Gun 3 | 2 . . . . 1 . Ballistic Cannon . | . . . . . . . Launcher 1 | . . . . . 1 . Special Weapon 1 | . 1 . . . . . Impact Weapon 1 | . . . . . 1 . Slashing Weapon 4 | . . . . . 1 3 Piercing Weapon . | . . . . . . . Special Melee Weapon 1 | . . . . . 1 . Unidentified Prototypes 4 | . . . . . 4 . Corrupted Parts 2 | . . . . . 2 . System Corruption 8 | . . . . . 8 . Parts Lost 29 | . 2 . . . 16 11 Power 6 | . 1 . . . 2 3 Propulsion 13 | . . . . . 6 7 Utility 5 | . 1 . . . 4 . Weapon 5 | . . . . . 4 1 Highest Loss Streak 4 | . 1 . . . 4 3 To Critical Strikes 1 | . 1 . . . . . Average Backups 12 | 4 7 9 9 12 14 13 Power . | . . . . . 1 1 Propulsion 2 | 2 3 4 4 4 1 1 Utility 3 | . . 1 1 2 3 6 Weapon 5 | 1 2 4 4 5 6 4 Tool/Special . | . . . . . . . Unused Backups 9 | . 1 . . . . 8 Power 1 | . . . . . . 1 Propulsion . | . . . . . . . Utility 4 | . . . . . . 4 Weapon 4 | . 1 . . . . 3 Tool/Special . | . . . . . . . Average Slot Usage (%) 97 | . 98 100 100 100 94 99 Engine 5 | . 14 14 14 6 1 3 Core 4 | . . . . 7 7 3 Treads 17 | . 28 28 28 28 15 6 Leg 8 | . . . . . 12 9 Wheel 3 | . . . . . 3 7 Flight 6 | . . . . . 3 21 Device 16 | . 10 9 14 14 22 7 Storage 10 | . 16 18 14 14 9 7 Processor 1 | . . . . . . 6 Hackware 1 | . . . . . . 7 Energy Gun 13 | . 6 28 28 28 11 7 Ballistic Gun 1 | . 18 . . . . . Impact Weapon 1 | . . . . . 1 . Slashing Weapon 3 | . . . . . 3 5 Peak Build Rating 44 | 7 8 8 9 17 36 44 Average Rating 25 | 5 7 8 8 14 28 39 On Entrance 11 | . 7 8 8 9 16 29 Avg Prop Armor Cover (%) 17 | . . . . . 14 22 Naked Turns . | . . . . . . . Heaviest Build 40 | 14 32 30 26 29 40 34 Greatest Support 60 | 40 40 40 40 40 60 42 Greatest Overweight (x) 3 | 3 . . . . 2 3 Average Overweight (x) . | . . . . . . 2 Largest Inventory Capacity 15 | 8 15 15 15 15 15 15 Average Capacity 14 | 7 9 15 15 15 15 15 Most Carried 15 | 6 9 9 10 14 15 15 Average Carried 12 | 4 7 9 9 12 14 13 Final Capacity 15 | 8 15 15 15 15 15 15 Final Carried 15 | 6 9 9 10 14 15 13 Class Distribution -------------------- 36% | Mutant 24% | Scavenger-Mutant 19% | Scavenger-Assassin 19% | Infiltrator-Mutant Dominant Class ---------------- Mutant | -10/Materials Mutant | -10/Mines Mutant | -10/Exiles Mutant | -9/Mines Infiltrator-Mutant | -8/Materials Scavenger-Assassin | -7/Factory Resources | -11 -10 -10 -10 -9 -8 -7 ----------- Run | Yrd Mat Min Exi Min Mat Fac Matter Collected 1506 | 187 234 10 . 30 768 277 Remotely . | . . . . . . . Salvage Created 2344 | 13 331 88 . . 1419 493 Parts 137 | 3 17 9 . . 82 26 Haulers Intercepted 7 | . 1 . . . 5 1 Recyclers Shooed 3 | 1 1 1 . . . . Parts Field Recycled . | . . . . . . . Retrieved Matter . | . . . . . . . Parts Self-Destructed . | . . . . . . . Prevented . | . . . . . . . Parts Restored . | . . . . . . . Kills | -11 -10 -10 -10 -9 -8 -7 ------- Run | Yrd Mat Min Exi Min Mat Fac Combat Hostiles Destroyed 42 | . 8 1 . . 29 4 Guns 41 | . 8 1 . . 28 4 AOE 1 | . . . . . 1 . Classes Destroyed 11 | 1 3 . . . 6 1 Worker 3 | . . . . . 2 1 Builder 5 | . . . . . 1 4 Tunneler 4 | 1 . 2 . . 1 . Hauler 7 | . 1 . . . 5 1 Recycler 3 | . . . . . 2 1 Operator 2 | . . . . . 1 1 Watcher 3 | . . . . . 2 1 Swarmer 16 | . 3 . . . 13 . Grunt 21 | . 5 1 . . 12 3 Sentry 4 | . . . . . 4 . Programmer 1 | . . . . . . 1 Best Kill Streak 4 | 1 4 2 . . 4 3 Combat Bots Only 4 | . 4 1 . . 4 3 Max Kills in Single Turn 2 | 1 1 1 . . 2 1 Gunslinging 1 | . . . . . 1 . Exploded 1 | . . . . . 1 . Melee . | . . . . . . . Uniques/NPCs Destroyed . | . . . . . . . Combat | -11 -10 -10 -10 -9 -8 -7 -------- Run | Yrd Mat Min Exi Min Mat Fac Hostile Shots Fired 299 | . 36 3 . . 189 71 Missed 66 | . 4 1 . . 46 15 Hits 233 | . 32 2 . . 143 56 Projectile 233 | . 32 2 . . 143 56 Critical Strikes 9 | . 2 . . . 5 2 Damage Taken 4380 | . 366 22 . 46 2114 1832 Core 1135 | . 62 . . . 362 711 Absorbed by Shields . | . . . . . . . Core Remaining (%) 69 | 100 . . . 75 34 . Volleys Fired 141 | 4 32 7 . 1 80 17 Largest 2 | 2 2 2 . 2 2 2 Hottest 145 | 40 100 80 . 80 145 122 Shots Fired 257 | 8 62 14 . 2 140 31 Gun 252 | 8 60 14 . 2 137 31 Cannon . | . . . . . . . Launcher 3 | . . . . . 3 . Special 2 | . 2 . . . . . Kinetic 48 | 8 40 . . . . . Thermal 206 | . 22 14 . 2 137 31 Explosive 3 | . . . . . 3 . Electromagnetic . | . . . . . . . Robot Hit Streak 21 | 3 13 5 . . 13 21 Robot Miss Streak 4 | 1 2 1 . 2 4 1 Penetration Max . | . . . . . . . Secondary Targets 6 | . . 1 . . 4 1 Max Gunslinging Chain 1 | . . 1 . . 1 1 Shots Hit Robots 211 | 5 42 10 . . 112 42 Core Hits 101 | 2 20 4 . . 62 13 Critical Kills 1 | . . . . . . 1 Critical Parts Destroyed 2 | . . . . . 2 . Critical Strikes 10 | . . . . . 6 4 Burn 6 | . . . . . 4 2 Smash 3 | . . . . . 2 1 Sever 1 | . . . . . . 1 Melee Attacks 121 | . . . . . 76 45 Impact 26 | . . . . . 20 6 Slashing 84 | . . . . . 47 37 Piercing . | . . . . . . . Sneak Attacks 33 | . . . . . 22 11 Combat Hostiles . | . . . . . . . Follow-up Attacks . | . . . . . . . Damage Inflicted 5347 | 50 487 115 . . 3117 1578 Guns 2969 | 50 487 115 . . 1770 547 Cannons . | . . . . . . . Explosions 500 | . . . . . 281 219 Melee 1857 | . . . . . 1048 809 Ramming 21 | . . . . . 18 3 Kinetic 380 | 50 330 . . . . . Thermal 2638 | . 157 115 . . 1819 547 Explosive 451 | . . . . . 232 219 Electromagnetic . | . . . . . . . Impact 566 | . . . . . 508 58 Slashing 1291 | . . . . . 540 751 Piercing . | . . . . . . . Highest Corruption 20 | . . . . . 20 12 Average Corruption 11 | . . . . . 14 9 Corruption Purged . | . . . . . . . Corruption Blocked . | . . . . . . . Effects 79 | . . . . . 44 35 Message Errors 24 | . . . . . 14 10 Matter Fused 14 | . . . . . 7 7 Heat Flow Errors 12 | . . . . . 3 9 Energy Discharges 7 | . . . . . 5 2 Parts Rejected 3 | . . . . . 1 2 Parts Fused 2 | . . . . . 2 . Data Loss (minor) 6 | . . . . . 3 3 Data Loss (major) 3 | . . . . . 2 1 Misfires 3 | . . . . . 3 . Alerts 2 | . . . . . 2 . Weapon Failures 3 | . . . . . 2 1 Overload Shots . | . . . . . . . Overflow Damage 745 | . . . . . 424 321 Projectiles . | . . . . . . . Explosions 48 | . . . . . 24 24 Melee 697 | . . . . . 400 297 Knockbacks . | . . . . . . . Impact . | . . . . . . . Kinetic . | . . . . . . . Secondary . | . . . . . . . Self-Inflicted Damage 331 | . . . . . . 331 Shots 4 | . . . . . . 4 Rammed 1 | . . . . . . 1 Targets Rammed 3 | . . . . . 2 1 Kicked 2 | . . . . . 2 . Crushed . | . . . . . . . Highest Temperature 452 | . 90 66 . 18 370 452 Average Temperature 90 | . 22 25 . 12 99 127 Received Heat Transfer 1224 | . 198 12 . . 765 249 Effects 3 | . . . . . 3 . Shutdowns 1 | . . . . . 1 . Energy Bleed 1 | . . . . . 1 . Matter Decay 1 | . . . . . 1 . Siege Activations . | . . . . . . . Martial Activations . | . . . . . . . Shielding Activations . | . . . . . . . Robots Disrupted . | . . . . . . . Combat Hostiles . | . . . . . . . Robots Corrupted 1 | . . . . . 1 . Combat Hostiles . | . . . . . . . Parts Fried . | . . . . . . . Impact Corruptions 3 | . . . . . 3 . Robots Melted . | . . . . . . . Combat Hostiles . | . . . . . . . Parts Melted 16 | . 1 . . . 8 7 Heat Transferred 5830 | . 350 250 . . 4009 1221 Parts Sabotaged . | . . . . . . . Parts Stolen . | . . . . . . . Parts Stripped . | . . . . . . . Power Chain Reactions . | . . . . . . . Alert | -11 -10 -10 -10 -9 -8 -7 ------- Run | Yrd Mat Min Exi Min Mat Fac Maximum Alert Level 2 | . . . . . 2 1 Low Security (%) 70 | 100 100 100 . 100 48 83 Level 1 13 | . . . . . 17 16 Level 2 16 | . . . . . 33 . Level 3 . | . . . . . . . Level 4 . | . . . . . . . Level 5 . | . . . . . . . High Security . | . . . . . . . Max Security . | . . . . . . . Peak Influence 637 | 5 105 30 . . 637 299 Initial 289 | . . 17 . . . 289 Average 166 | . 37 4 . . 254 141 Influence Increases 1977 | 5 220 75 . . 1193 484 Destroy 0b10 Robot/C 840 | . 160 20 . . 580 80 Destroy 0b10 Robot/NC 135 | 5 5 10 . . 70 45 Destroy Leader 180 | . 32 . . . 124 24 Trap Triggered on 0b10 20 | . . . . . 20 . Successful Hack 32 | . 6 . . . 14 12 Select Force Hacks 30 | . . . . . 30 . Disable Machine 285 | . . . . . 150 135 Destroy Structure 125 | . 2 . . . 85 38 Lose Combat Pursuer 330 | . 15 45 . . 120 150 Influence Decreases 1832 | 5 174 121 . . 556 976 Entered New Map 377 | . . 29 . . . 348 Time Decay 1165 | 5 154 92 . . 396 518 Lost Part 290 | . 20 . . . 160 110 Squads Dispatched 13 | . . . . . 7 6 Investigation 5 | . . . . . 3 2 Extermination 2 | . . . . . . 2 Reinforcement 4 | . . . . . 2 2 Assault 2 | . . . . . 2 . Garrison . | . . . . . . . Intercept . | . . . . . . . Searches Triggered . | . . . . . . . Construction Impeded 1 | . . . . . . 1 Haulers Reinforced 1 | . . . . . . 1 Active Scanning Responses . | . . . . . . . Cargo Convoy Interrupts . | . . . . . . . Stealth | -11 -10 -10 -10 -9 -8 -7 --------- Run | Yrd Mat Min Exi Min Mat Fac Distress Signals 3 | . . . . . 3 . Communications Jammed 8 | . . . . . 8 . Distress Signals 8 | . . . . . 8 . Times Spotted 101 | . 11 3 . . 64 23 Peak Tracking Total 6 | . 4 2 . . 5 6 Tactical Retreats 18 | . 1 2 . . 9 6 ECM-based Alert Blocks 10 | . . . . . 10 . Traps | -11 -10 -10 -10 -9 -8 -7 ------- Run | Yrd Mat Min Exi Min Mat Fac Traps Triggered 7 | . . . . 1 3 3 Indirectly . | . . . . . . . Trap Hack Attempts . | . . . . . . . Triggered . | . . . . . . . Disarmed . | . . . . . . . Reprogrammed . | . . . . . . . Reused 2 | . . . . . 2 . Traps Reconfigurated 9 | . . . . 2 7 . Traps Extracted . | . . . . . . . Installed . | . . . . . . . Triggered 2 | . . . . . 2 . Machines | -11 -10 -10 -10 -9 -8 -7 ---------- Run | Yrd Mat Min Exi Min Mat Fac Machines Disabled 19 | . . . . . 10 9 Max in Single Turn 5 | . . . . . 2 5 Machines Repaired . | . . . . . . . Machines Dismantled . | . . . . . . . Machines Sabotaged . | . . . . . . . Overloaded Fab Kills . | . . . . . . . Hacking | -11 -10 -10 -10 -9 -8 -7 --------- Run | Yrd Mat Min Exi Min Mat Fac Machines Accessed 24 | . 3 . 2 1 10 8 Terminals 13 | . 3 . . . 7 3 Fabricators 2 | . . . . . . 2 Repair Stations . | . . . . . . . Recycling Units 1 | . . . . . 1 . Scanalyzers 4 | . . . . . 2 2 Garrison Access 1 | . . . . . . 1 Total Hacks 64 | . 7 . 5 1 35 16 Successful 34 | . 5 . 5 1 14 9 Failed 30 | . 2 . . . 21 7 Catastrophic 9 | . 1 . . . 7 1 Database Lockouts . | . . . . . . . Manual 27 | . 4 . 1 . 18 4 Terminals 36 | . 7 . . . 24 5 Fabricators 6 | . . . . . . 6 Repair Stations . | . . . . . . . Recycling Units 1 | . . . . . 1 . Scanalyzers 12 | . . . . . 10 2 Garrison Access 3 | . . . . . . 3 Terminal Hacks 16 | . 4 . 5 1 5 1 Record 4 | . . . 4 . . . Robot Analysis 1 | . 1 . . . . . Prototype ID Bank 3 | . 1 . . . 2 . Open Door 1 | . . . . 1 . . Branch Access Points 1 | . . . . . 1 . Dispatch Records 1 | . . . . . 1 . Transport Status 2 | . 1 . . . 1 . Recall Investigation 1 | . . . . . . 1 Hauler Manifests 1 | . 1 . . . . . Proto ID Catalog 1 | . . . 1 . . . Fabricator Hacks 4 | . . . . . . 4 Load Schematic 2 | . . . . . . 2 Build 2 | . . . . . . 2 Repair Station Hacks . | . . . . . . . Recycling Unit Hacks . | . . . . . . . Scanalyzer 9 | . . . . . 7 2 Insert Component 3 | . . . . . 3 . Analyze 3 | . . . . . 3 . Retrieve Study 3 | . . . . . 1 2 Garrison Access Hacks . | . . . . . . . Unauthorized Hacks 5 | . 1 . . . 2 2 Terminals 2 | . 1 . . . 1 . Operators 2 | . 1 . . . 1 . Fabricators 1 | . . . . . . 1 Report 1 | . . . . . . 1 Repair Stations . | . . . . . . . Recycling Units 1 | . . . . . 1 . Tunnel 1 | . . . . . 1 . Scanalyzers . | . . . . . . . Garrison Access 1 | . . . . . . 1 Watchers 1 | . . . . . . 1 Data Cores Recovered . | . . . . . . . Used . | . . . . . . . Hacking Detections 14 | . 2 . . . 6 6 Full Trace Events 5 | . . . . . 3 2 Feedback Events . | . . . . . . . Feedback Blocked . | . . . . . . . Robot Schematics Acquired . | . . . . . . . Robots Built . | . . . . . . . Authchips . | . . . . . . . Time . | . . . . . . . Total Robot Build Rating . | . . . . . . . Part Schematics Acquired 3 | . . . . . 3 . Parts Built 2 | . . . . . . 2 Authchips . | . . . . . . . Time 174 | . . . . . . 174 Total Part Build Rating 6 | . . . . . . 6 Part Studies Acquired 3 | . . . . . 1 2 Parts Repaired . | . . . . . . . Time . | . . . . . . . Parts Recycled . | . . . . . . . Recycled Matter . | . . . . . . . Retrieved Matter . | . . . . . . . Retrieved Components . | . . . . . . . Parts Scanalyzed 3 | . . . . . 3 . Part Schematics Acquired 3 | . . . . . 3 . Parts Damaged . | . . . . . . . Bothacking | -11 -10 -10 -10 -9 -8 -7 ------------ Run | Yrd Mat Min Exi Min Mat Fac Used RIF Installer . | . . . . . . . Robots Hacked 2 | . . . . . 1 1 Non-combat 2 | . . . . . 1 1 Combat . | . . . . . . . Robot Hacks Applied 3 | . . . . . 1 2 parse_system 1 | . . . . . 1 . find_chute 2 | . . . . . . 2 Relay Couplers Released . | . . . . . . . Fabnet Peak Effective % . | . . . . . . . Robots Rewired . | . . . . . . . Allies Hacked . | . . . . . . . Hacks Repelled . | . . . . . . . Allies | -11 -10 -10 -10 -9 -8 -7 -------- Run | Yrd Mat Min Exi Min Mat Fac Total Allies . | . . . . . . . Largest Group . | . . . . . . . Highest-Rated Group . | . . . . . . . Highest-Rated Ally . | . . . . . . . Total Orders . | . . . . . . . Ally Attacks . | . . . . . . . Total Damage . | . . . . . . . Kills . | . . . . . . . Allies Corrupted . | . . . . . . . Allies Melted . | . . . . . . . Intel | -11 -10 -10 -10 -9 -8 -7 ------- Run | Yrd Mat Min Exi Min Mat Fac Active Infowar (turns) 5603 | 46 380 393 416 248 2816 1304 Terrain 830 | . . . . . . 830 Structural 2410 | . . . . . 2273 137 Seismic 1293 | 46 380 393 416 58 . . Jamming 2173 | . . . . 190 1648 335 ECM 672 | . . . . . 657 15 Robot Analysis Total 1 | . 1 . . . . . Derelict Logs Recovered 1 | . . 1 . . . . Drone Launches . | . . . . . . . Drone Recoveries . | . . . . . . . Exploration | -11 -10 -10 -10 -9 -8 -7 ------------- Run | Yrd Mat Min Exi Min Mat Fac Turns Passed 6449 | 120 525 576 416 323 3059 1430 Spaces Moved 3585 | 59 246 346 260 178 1467 1029 Core 15 | 15 . . . . . . Treads 1988 | 44 246 346 260 178 913 1 Legs 19 | . . . . . 19 . Wheels 1563 | . . . . . 535 1028 Hover . | . . . . . . . Flight . | . . . . . . . Fastest Speed 50 | 50 160 160 160 160 105 100 Average Speed 139 | 157 160 160 160 160 143 113 Slowest Speed 260 | 200 160 160 160 160 260 152 Overloaded Moves . | . . . . . . . Propulsion Burnouts . | . . . . . . . Robots Hopped . | . . . . . . . Potential Cave-ins 1 | . . . . . 1 . Cave-ins Triggered 2 | . . . . . 1 1 Exploration Rate (%) 42 | 4 42 63 65 29 73 23 Regions Visited 6 Branch Regions 3 Pre-discovered Areas 2 | . . . 1 . 1 . Known Exits Taken . | . . . . . . . Unknown Exits Taken 6 | 1 1 1 1 1 1 . Scrap Searched 2 | . . 1 . 1 . . Spaces Dug 72 | . 2 . . . 45 25 Terrain Destroyed 142 | . 2 . . . 97 43 Melee 70 | . . . . . 45 25 Projectile 4 | . 2 . . . 2 . AOE 68 | . . . . . 50 18 Terrain Rammed . | . . . . . . . Walls Destroyed . | . . . . . . . Machines Disabled . | . . . . . . . Actions | -11 -10 -10 -10 -9 -8 -7 --------- Run | Yrd Mat Min Exi Min Mat Fac Total 4542 | 76 316 354 260 213 2141 1182 Wait 493 | . 25 1 . 28 409 30 Move 3578 | 58 245 345 259 177 1465 1029 Hop . | . . . . . . . Pick Up 50 | 7 6 . 1 4 20 12 Fast Attach 33 | 6 1 . . . 19 7 Attach 21 | 1 1 . . . 13 6 Detach 2 | . . . . . 2 . Swap 70 | . 4 1 . 3 38 24 Drop 29 | . 2 . . . 16 11 Fire 141 | 4 32 7 . 1 80 17 Melee 121 | . . . . . 76 45 Ram . | . . . . . . . Kick 2 | . . . . . 2 . Crush 1 | . . . . . . 1 Escape Stasis 1 | . . . . . 1 . Rewire . | . . . . . . . Trap . | . . . . . . . Miscellaneous . | . . . . . . . Route ------- -11/Scrapyard -10/Materials -10/Mines -10/Exiles -9/Mines -8/Materials (discovered 2 exits: *Fac x2) -7/Factory (discovered 1 exit: [*Low]) History --------- Turn | Location | Event 19 | -11/Scrapyard | Discovered new exit (range 15) 121 | -11/Scrapyard | Entered Materials 316 | -10/Materials | Build established: Mutant 616 | -10/Materials | Discovered new exit (range 16) 621 | -10/Materials | Derelicts attacked the area 646 | -10/Materials | Entered Mines 750 | -10/Mines | Learned Materials terminal intel 1214 | -10/Mines | Deemed a non-threat by the Exiles lab entrance 1216 | -10/Mines | Discovered new exit (range 5) 1222 | -10/Mines | Entered Exiles 1261 | -10/Exiles | Met 8R-AWN 1290 | -10/Exiles | Met EX-HEX 1350 | -10/Exiles | Met EX-DEC 1362 | -10/Exiles | Learned location of Zion (-6) 1411 | -10/Exiles | Met EX-BIN 1435 | -10/Exiles | Aligned with FarCom system 1437 | -10/Exiles | Given EX-Vault access code 1474 | -10/Exiles | Opened EX-Vault 1486 | -10/Exiles | Found Trap Reconfigurator 1519 | -10/Exiles | Warned to stay clear of 0b10 Research branches 1540 | -10/Exiles | Exiles lab attacked by MAIN.C 1623 | -10/Exiles | Discovered new exit (range 10) 1638 | -10/Exiles | Left Exiles lab with Trap Reconfigurator 1638 | -10/Exiles | Entered Mines 1696 | -9/Mines | Met a Derelict who couldn't figure out how to use a Trap Extractor 1833 | -9/Mines | Discovered new exit (range 8) 1961 | -9/Mines | Entered Materials 1961 | -8/Materials | Evolved 4 slots: Propulsion x2, Utility x2 1962 | -8/Materials | Loaded intel: 12 terminal locations 2576 | -8/Materials | Build established: Infiltrator-Mutant 2691 | -8/Materials | Discovered new exit (range 4) 3295 | -8/Materials | Discovered new exit (range 13) 3512 | -8/Materials | Lost 3 parts (1n1u1w) 3644 | -8/Materials | Build established: Scavenger-Mutant 3986 | -8/Materials | Crushed by falling debris 3987 | -8/Materials | System corruption reached 10% 4017 | -8/Materials | Lost 4 parts (1p2u1w) 4142 | -8/Materials | Core integrity fell below 50% 4761 | -8/Materials | First assault squad dispatched 4874 | -8/Materials | Build established: Scavenger-Assassin 5020 | -8/Materials | Entered Factory 5020 | -7/Factory | Evolved 2 slots: Propulsion x2 5213 | -7/Factory | Crushed by falling debris 5244 | -7/Factory | Lost 3 parts (1p2n) 5305 | -7/Factory | Discovered new exit (range 6) 5785 | -7/Factory | Fabricated Imp. VTOL Module (x1) 5856 | -7/Factory | System corruption reached 10% 5865 | -7/Factory | Core integrity fell below 50% 5979 | -7/Factory | Lost 3 parts (3n) 6090 | -7/Factory | Fabricated Imp. VTOL Module (x1) 6257 | -7/Factory | Build established: Scavenger-Mutant 6450 | -7/Factory | Destroyed self via exploding Fusion Modulator Last Messages --------------- 06357_ System corrupted: Matter fused (-5). 06371_ >> FABRICATOR: Completed P-60 Hacker at (155,88). 06375_ System corrupted: Heat flow error (+126). 06392_ Discarded Adv. Terrain Scan Processor. 06404_ System corrupted: Matter fused (-8). 06411_ >> FABRICATOR: Completed Adv. Shield Generator at (103,63). 06421_ System corrupted: Component data lost. 06450_ P-60 Hacker resets K-01 Serf, system corruption cleaned. 06450_ Nuclear Reactor explodes. 06450_ Fusion Modulator explodes. 06450_ Neutrino Reactor explodes. 06450_ K-01 Serf destroyed. 06450_ Terminal disabled. 06450_ Lgt. Nuclear Core destroyed. 06450_ Destroyed Lgt. Nuclear Core. 06450_ Aluminum Leg destroyed. 06450_ Destroyed Aluminum Leg. Map ----- +----------------------------------------------------+ | ?#""" ## ##?#### ? # """ | | ?#"" ## ####### #####"##### | | ## ! ## #?##### ########### | | ?#######+#### ##??#?# # | | ???##??# ##?# ##?#### ? # | | #???#########+###?#?# ? # | | ???#??# ##### # """" * | | ????#?# "" #?### # """" * | | ??##??# "G """ #?#?# # """" | | | ??????# "" """ ##?## # """" | | ??????# """ #??## + """" | | #?#???# ###?# # """" | | #?????# !/ ##?## # | | ??????# / #???# # | | ?????##########+##### # | | ???????????# ########### | | ?????#???#?# #?###### ## | | ???????????# ########### | | ???????????# # ] | | ??????###### # """ " | | ??????##### ##### # """"" """ | | ??????## "" # # """"" """ | | ??????# %! # # | | ?????## h p + + """ " | | ?????# # # """"" """ | | ?????# @ # # """"" """ | | ?????# # #g | | ?????## # # | | ?????# # ########### | | ?????## # | | ??????# # ^^ | | ??????## + | | ??????## [ # | | ??????############### | | ??????#################+############ | | ????????????????## ####### | | ????????????????## ##????? | | ????????????????## """ """" ##????? | | ????????????????## """ """" ##????? | | ???????????????### """ """" ##????? | | ???????????????### """" ##????? | | ???????????????##Y ##????? | | ???????????????### ##????? | | ???????????????### ##????? | | ????????????????## !!! ##????? | | ????????????????## !!! ##????? | | ????????????????## !!! ####### | | ????????????????#############"####### | | ????????????????############# | | ???????????????????????????## """ " | +----------------------------------------------------+ Best States ------------- Heat Dissipation 48 Energy Generation 18 Energy Capacity 265 Matter Stores 300 Matter Capacity 300 Sight Range 16 Terrain Scan Range 16 Terrain Scan Density 210 ECM Strength 2 Jamming Range 12 Evasion (%) 55 Recoil Reduction 3 Offensive Hacking 10 Item Schematics ----------------- System Shield | -8/Materials | Scanalyzed Imp. VTOL Module | -8/Materials | Scanalyzed Hacking Suite | -8/Materials | Scanalyzed Robot Schematics ------------------ None Fabricated ------------ Imp. VTOL Module | x1 | -7/Factory Imp. VTOL Module | x1 | -7/Factory Repaired ---------- Nothing Studied --------- Com. Wheel | -8/Materials | Hacked Xenon Bombardment Thruster | -7/Factory | Hacked Wheel | -7/Factory | Hacked Alien Tech Used ----------------- None Achievements -------------- A Problem For Future Me Not Today, Chutes Challenges ------------ None Game ------ Seed FusionFusionStick Manual? 0 Play Time 01:35:54 Cumulative 42.5 hours Start 2026.04.03 @ 07:39:22 End 2026.04.04 @ 15:47:43 Sessions 6 Manual Loads 0 Difficulty Rogue Special Mode None Game No. 43 Rogue 43 Adventurer 0 Explorer 0 Win Type - Total 0 Types 0/0/0/0/0/0/0/0/0/0 Lore% 32 Gallery% 26 Achievement% 22 Wizard Run 0 Options --------- Layout 1 ASCII 0 Keyboard 1 Movement Vi Keybinds 0 Fullscreen 2 Font 24/Smallcaps Map View 50x35 Zoom Use 0% Tactical HUD 1 Map Filters NONE Filters NONE Steam 1 RUN: 1afbf341-24b8-4507-92c0-fd4e26ffd613